Cogmind - Beta 9.5 @@@ ROGUE MODE // 2020.04.08 @ 20:47:15 Player: V_ Result: Destroyed by G-34 Mercenary with Small Laser Performance ------------- Evolutions (0) 0 Regions Visited (2) 400 Robots Destroyed (20) 100 Value Destroyed (351) 351 Prototype IDs (0) 0 Alien Tech Used (0) 0 Bonus (0) 0 TOTAL SCORE: 851 Bonus ------- None Cogmind --------- Core Integrity 0/250 Matter 300/300 Energy 250/250 System Corruption 0% Temperature Cool (6) Movement Walking (120) Location -10/Mines Parts ------- > --- POWER (1) -------- Ion Engine > --- PROPULSION (2) --- Aluminum Leg Aluminum Leg > --- UTILITY (2) ------ Targeting Computer Light Armor Plating > --- WEAPON (2) ------- Small Laser > --- INVENTORY (4) ---- Large Storage Unit Large Storage Unit Improved Terrain Scanner Improved Terrain Scanner Peak State ------------ > --- POWER ------------ Light Ion Engine > --- PROPULSION ------- Aluminum Leg Aluminum Leg > --- UTILITY ---------- Improved Terrain Scanner Seismic Analyzer > --- WEAPON ----------- Small Laser Light Assault Rifle > --- INVENTORY -------- Ion Engine Small Storage Unit EM Pulse Gun Mining Laser [Rating: 8] Favorites ----------- Power Ion Engine Engine Ion Engine Propulsion Aluminum Leg Leg Aluminum Leg Utility Targeting Computer Device Improved Terrain Scanner Storage Medium Matter Pod Processor Targeting Computer Protection Light Armor Plating Weapon Small Laser Energy Gun Small Laser Ballistic Gun Light Assault Rifle Special Weapon Mining Laser Build | -11 -10 -10 ------- Run | Scr Mat Min Slots Evolved . | . . . Power . | . . . Propulsion . | . . . Utility . | . . . Weapon . | . . . Parts Attached 33 | 12 20 1 Power 4 | 2 2 . Engine 4 | 2 2 . Core . | . . . Reactor . | . . . Propulsion 7 | 2 5 . Treads . | . . . Leg 7 | 2 5 . Wheel . | . . . Hover . | . . . Flight . | . . . Utility 13 | 6 6 1 Device 2 | 1 1 . Storage 5 | 4 1 . Processor 5 | 1 4 . Hackware . | . . . Protection 1 | . . 1 Artifact . | . . . Weapon 9 | 2 7 . Energy Gun 5 | 1 4 . Energy Cannon . | . . . Ballistic Gun 2 | 1 1 . Ballistic Cannon . | . . . Launcher . | . . . Special Weapon 2 | . 2 . Impact Weapon . | . . . Slashing Weapon . | . . . Piercing Weapon . | . . . Special Melee Weapon . | . . . Unidentified Prototypes . | . . . Parts Lost 12 | . 12 . Power 1 | . 1 . Propulsion 2 | . 2 . Utility 2 | . 2 . Weapon 7 | . 7 . Highest Loss Streak 8 | . 8 . Average Slot Usage (%) 85 | . 86 85 Engine 13 | . 13 14 Leg 24 | . 24 28 Device 1 | . 1 . Storage 9 | . 11 . Processor 14 | . 12 26 Energy Gun 16 | . 16 14 Ballistic Gun 3 | . 4 . Naked Turns . | . . . Heaviest Build 24 | 13 24 9 Greatest Support 26 | 20 26 20 Greatest Overweight (x) 6 | . 6 . Average Overweight (x) . | . . . Largest Inventory Capacity 10 | 6 10 4 Average Capacity 5 | 4 6 4 Most Carried 8 | 6 8 4 Average Carried 3 | 2 4 4 Final Capacity 6 | 6 4 4 Final Carried 6 | 6 4 4 Class Distribution -------------------- 78% | Mutant 21% | Scavenger-Mutant Dominant Class ---------------- Mutant | -10/Materials Scavenger-Mutant | -10/Mines Resources | -11 -10 -10 ----------- Run | Scr Mat Min Matter Collected 559 | 420 79 60 Remotely . | . . . Salvage Created 590 | 199 372 19 Parts 42 | 16 24 2 Haulers Intercepted 1 | . 1 . Recyclers Shooed . | . . . Parts Field Recycled . | . . . Retrieved Matter . | . . . Parts Self-Destructed . | . . . Prevented . | . . . Kills | -11 -10 -10 ------- Run | Scr Mat Min Combat Hostiles Destroyed 10 | . 10 . Guns 8 | . 8 . Cannons 1 | . 1 . AOE 1 | . 1 . Classes Destroyed 7 | 3 4 . Worker 2 | 2 . . Builder 1 | . 1 . Tunneler 5 | 4 . 1 Hauler 1 | . 1 . Recycler 1 | 1 . . Swarmer 3 | . 3 . Grunt 7 | . 7 . Best Kill Streak 4 | 4 4 1 Combat Bots Only 3 | . 3 . Max Kills in Single Turn 2 | 1 2 1 Gunslinging . | . . . Exploded 1 | . 1 . Melee . | . . . Uniques/NPCs Destroyed . | . . . Combat | -11 -10 -10 -------- Run | Scr Mat Min Damage Taken 1056 | . 1029 27 Core 254 | . 243 11 Absorbed by Shields . | . . . Core Remaining (%) 100 | 100 . . Volleys Fired 52 | 20 27 5 Largest 2 | 2 2 1 Hottest 200 | 60 200 40 Shots Fired 89 | 40 44 5 Gun 86 | 40 41 5 Cannon . | . . . Launcher . | . . . Special 3 | . 3 . Kinetic 26 | 20 6 . Thermal 60 | 20 35 5 Explosive . | . . . Electromagnetic 3 | . 3 . Robot Hit Streak 13 | 5 13 11 Robot Miss Streak 3 | 3 2 2 Penetration Max . | . . . Secondary Targets . | . . . Shots Hit Robots 61 | 23 35 3 Core Hits 28 | 9 18 1 Critical Hits . | . . . Critical Kills . | . . . Critical Parts Destroyed . | . . . Melee Attacks . | . . . Impact . | . . . Slashing . | . . . Piercing . | . . . Sneak Attacks . | . . . Combat Hostiles . | . . . Follow-up Attacks . | . . . Damage Inflicted 1191 | 212 949 30 Guns 645 | 212 403 30 Cannons . | . . . Explosions 518 | . 518 . Melee . | . . . Ramming 4 | . 4 . Kinetic 109 | 71 38 . Thermal 1042 | 141 871 30 Explosive . | . . . Electromagnetic 36 | . 36 . Impact . | . . . Slashing . | . . . Piercing . | . . . Highest Corruption . | . . . Average Corruption . | . . . Corruption Purged . | . . . Overload Shots . | . . . Overflow Damage 307 | . 307 . Projectiles . | . . . Explosions 307 | . 307 . Melee . | . . . Knockbacks 1 | . 1 . Impact 1 | . 1 . Kinetic . | . . . Secondary . | . . . Self-Inflicted Damage 262 | . 262 . Shots 3 | . 3 . Rammed 1 | . 1 . Targets Rammed 2 | . 2 . Kicked 1 | . 1 . Crushed . | . . . Highest Temperature 324 | 60 324 . Average Temperature 78 | 26 101 . Received Heat Transfer 405 | . 390 15 Effects 1 | . 1 . Energy Bleed 1 | . 1 . Siege Activations . | . . . Robots Corrupted . | . . . Combat Hostiles . | . . . Parts Fried . | . . . Impact Corruptions . | . . . Robots Melted . | . . . Combat Hostiles . | . . . Parts Melted 3 | . 3 . Heat Transferred 1604 | 325 1204 75 Parts Sabotaged . | . . . Parts Stolen . | . . . Parts Stripped . | . . . Power Chain Reactions 1 | . 1 . Missiles Intercepted . | . . . Alert | -11 -10 -10 ------- Run | Scr Mat Min Peak Influence 127 | 35 127 24 Average Influence 32 | 17 46 24 Maximum Alert Level . | . . . Low Security (%) 100 | 100 100 100 Level 1 . | . . . Level 2 . | . . . Level 3 . | . . . Level 4 . | . . . Level 5 . | . . . High Security . | . . . Max Security . | . . . Squads Dispatched 4 | . 4 . Investigation 1 | . 1 . Extermination . | . . . Reinforcement 3 | . 3 . Assault . | . . . Garrison . | . . . Intercept . | . . . Construction Impeded . | . . . Haulers Reinforced . | . . . Stealth | -11 -10 -10 --------- Run | Scr Mat Min Distress Signals 2 | . 2 . Communications Jammed . | . . . Distress Signals . | . . . Times Spotted 22 | . 20 2 Peak Tracking Total 7 | . 7 2 Tactical Retreats 3 | . 3 . Traps | -11 -10 -10 ------- Run | Scr Mat Min Traps Triggered . | . . . Indirectly . | . . . Trap Hack Attempts . | . . . Triggered . | . . . Disarmed . | . . . Reprogrammed . | . . . Reused . | . . . Traps Extracted . | . . . Installed . | . . . Triggered . | . . . Machines | -11 -10 -10 ---------- Run | Scr Mat Min Machines Disabled 2 | . 2 . Max in Single Turn 2 | . 2 . Machines Sabotaged . | . . . Garrisons Compromised . | . . . Overloaded Fab Kills . | . . . Fab Network Shutdowns . | . . . Hacking | -11 -10 -10 --------- Run | Scr Mat Min Machines Accessed 1 | . 1 . Terminals . | . . . Fabricators . | . . . Repair Stations 1 | . 1 . Recycling Units . | . . . Scanalyzers . | . . . Garrison Access . | . . . Total Hacks 7 | . 7 . Successful 5 | . 5 . Failed 2 | . 2 . Catastrophic . | . . . Database Lockouts . | . . . Manual . | . . . Terminals . | . . . Fabricators . | . . . Repair Stations 7 | . 7 . Recycling Units . | . . . Scanalyzers . | . . . Garrison Access . | . . . Terminal Hacks . | . . . Fabricator Hacks . | . . . Repair Station Hacks 5 | . 5 . Scan Component 3 | . 3 . Repair 2 | . 2 . Recycling Unit Hacks . | . . . Scanalyzer . | . . . Garrison Access Hacks . | . . . Unauthorized Hacks . | . . . Terminals . | . . . Fabricators . | . . . Repair Stations . | . . . Recycling Units . | . . . Scanalyzers . | . . . Garrison Access . | . . . Data Cores Recovered . | . . . Used . | . . . Hacking Detections 1 | . 1 . Full Trace Events 1 | . 1 . Feedback Events . | . . . Feedback Blocked . | . . . Robot Schematics Acquired . | . . . Robots Built . | . . . Matter . | . . . Time . | . . . Total Robot Build Rating . | . . . Part Schematics Acquired . | . . . Parts Built . | . . . Matter . | . . . Time . | . . . Total Part Build Rating . | . . . Parts Repaired 2 | . 2 . Time 62 | . 62 . Parts Recycled . | . . . Recycled Matter . | . . . Retrieved Matter . | . . . Retrieved Components . | . . . Parts Scanalyzed . | . . . Part Schematics Acquired . | . . . Parts Damaged . | . . . Bothacking | -11 -10 -10 ------------ Run | Scr Mat Min Used RIF Installer . | . . . Robots Hacked . | . . . Non-combat . | . . . Combat . | . . . Robot Hacks Applied . | . . . Relay Couplers Released . | . . . Robots Rewired . | . . . Allies Hacked . | . . . Hacks Repelled . | . . . Allies | -11 -10 -10 -------- Run | Scr Mat Min Total Allies . | . . . Largest Group . | . . . Highest-Rated Group . | . . . Highest-Rated Ally . | . . . Total Orders . | . . . Ally Attacks . | . . . Total Damage . | . . . Kills . | . . . Allies Corrupted . | . . . Allies Melted . | . . . Intel | -11 -10 -10 ------- Run | Scr Mat Min Robot Analysis Total . | . . . Derelict Logs Recovered 1 | . . 1 Drone Launches . | . . . Drone Recoveries . | . . . Exploration | -11 -10 -10 ------------- Run | Scr Mat Min Turns Passed 1166 | 512 565 89 Spaces Moved 574 | 221 289 64 Core 17 | 11 6 . Treads . | . . . Legs 557 | 210 283 64 Wheels . | . . . Hover . | . . . Flight . | . . . Fastest Speed 50 | 50 120 120 Average Speed 125 | 116 133 120 Slowest Speed 350 | 120 350 120 Overloaded Moves . | . . . Propulsion Burnouts . | . . . Robots Hopped . | . . . Cave-ins Triggered . | . . . Exploration Rate (%) 16 | 6 27 16 Regions Visited 2 Branch Regions 1 Pre-discovered Areas . | . . . Known Exits Taken . | . . . Unknown Exits Taken 2 | 1 1 . Scrap Searched 1 | . . 1 Spaces Dug . | . . . Terrain Destroyed 37 | . 37 . Melee . | . . . Projectile 2 | . 2 . AOE 35 | . 35 . Actions | -11 -10 -10 --------- Run | Scr Mat Min Total 921 | 436 414 71 Wait 241 | 174 67 . Move 572 | 220 288 64 Hop . | . . . Pick Up 10 | 5 5 . Fast Attach 24 | 11 12 1 Attach 7 | 1 6 . Detach 5 | 3 1 1 Swap 2 | . 2 . Drop 6 | 2 4 . Fire 52 | 20 27 5 Melee . | . . . Ram . | . . . Kick 2 | . 2 . Crush . | . . . Escape Stasis . | . . . Rewire . | . . . Trap . | . . . Miscellaneous . | . . . Route ------- -11/Scrapyard -10/Materials -10/Mines (discovered 1 exit: [*Mat]) History --------- Turn | Location | Event 5 | -11/Scrapyard | Discovered new exit (range 16) 513 | -11/Scrapyard | Entered Materials 514 | -10/Materials | Build established: Mutant 689 | -10/Materials | Core integrity fell below 50% 707 | -10/Materials | Discovered new exit (range 10) 727 | -10/Materials | Lost 8 parts (1p2n1u4w) 865 | -10/Materials | Repaired Broken Aluminum Leg 898 | -10/Materials | Core integrity fell below 20% 1017 | -10/Materials | Repaired Aluminum Leg 1078 | -10/Materials | Entered Mines 1138 | -10/Mines | Learned Materials interactive machine intel 1139 | -10/Mines | Discovered new exit (range 10) 1167 | -10/Mines | Destroyed by G-34 Mercenary with Small Laser Last Messages --------------- 01039_ Ion Engine melted. 01039_ G-34 Mercenary destroyed. 01064_ Acquired Targeting Computer. 01071_ Acquired 44 matter. LOCATION=UNKNOWN GOAL=ESCAPE 01078_ T-07 Excavator destroyed. 01138_ Acquired derelict log, extracted data. Data stored: Materials interactive machine intel. 01139_ EXIT=FOUND 01140_ Searching scrap... 01140_ Found 31 Matter. 01140_ Found Lgt. Armor Plating. 01140_ Found 35 Matter. 01141_ Acquired 31 matter. 01146_ Acquired 19 matter. 01150_ Discarded Targeting Computer. 01150_ Acquired Lgt. Armor Plating. 01153_ Acquired 10 matter. 01156_ U-05 Engineer lays Concrete. Map ----- +----------------------------------------------------+ | ?????????# #?????????????????????????????????? | | ?????????# #?????????????????????????????????? | | ?????????# #?????????????????????????????????? | | ?????????# #?????????????????????????????????? | | ?????????# #?????????????????????????????????? | | ?????????# #?????????????????????????????????? | | ?????????# ##????????????????????????????????? | | ?????????# #????????????????????????????????? | | ?????????### #????????????????????????????????? | | ???????????# #####????????????????????????????? | | ???????????# #????????????????????????????? | | ???????????#### #????????????????????????????? | | ??????????????# #????????????????????????????? | | ??????????????# #????????????????????????????? | | ??????????????# #######??????????????????????? | | ??????????????# #??????????????????????? | | ??????????????# ##### #??????????????????????? | | ?# ???????????# #???# #??????????????????????? | | ?# ?????????# ##### #??????????????????????? | | ?# < ???????# ##?????????????????????? | | ?# ###### ##????????????????????? | | ??? """ g ##???????????????????? | | ??? """ g #???????????????????? | | ??? """ ####### ####????????????????? | | ???? ""????????# r #????????????????? | | ???????????????# @ u ## #????????????????? | | ???????????????# u##???????????????????? | | ???????????????# ##????????????????????? | | ???????????????# ##?????????????????????? | | ???????????????# #??????????????????????? | | ???????????????## #??????????????????????? | | ????????????????# ##??????????????????????? | | ????????????????## ###???????????????????????? | | ?????????????????####?????????????????????????? | | ??????????????????????????????????????????????? | | ??????????????????????????????????????????????? | | ??????????????????????????????????????????????? | | ??????????????????????????????????????????????? | | ??????????????????????????????????????????????? | | ??????????????????????????????????????????????? | | ??????????????????????????????????????????????? | | ??????????????????????????????????????????????? | | ??????????????????????????????????????????????? | | ??????????????????????????????????????????????? | | ??????????????????????????????????????????????? | | ??????????????????????????????????????????????? | | ??????????????????????????????????????????????? | | ??????????????????????????????????????????????? | | ??????????????????????????????????????????????? | | ??????????????????????????????????????????????? | +----------------------------------------------------+ Best States ------------- Heat Dissipation 25 Energy Generation 10 Energy Capacity 250 Matter Stores 400 Matter Capacity 400 Sight Range 16 Terrain Scan Range 16 Terrain Scan Density 60 Additional Mass Support 6 Armor Coverage 150 Evasion (%) 40 Targeting Accuracy 10 Item Schematics ----------------- None Robot Schematics ------------------ None Fabricated ------------ Nothing Alien Tech Used ----------------- None Achievements -------------- None Challenges ------------ None Game ------ Seed ResetDimensionalTearclaws Manual? 0 Play Time 00:18:24 Cumulative 2.8 hours Start 2020.04.08 @ 20:26:36 End 2020.04.08 @ 20:47:15 Sessions 1 Manual Loads 0 Difficulty Rogue Special Mode None Game No. 11 Rogue 11 Adventurer 0 Explorer 0 Win Type - Total 0 Types 0/0/0/0/0/0/0 Lore% 4 Gallery% 10 Achievement% 8 Wizard Run 0 Options --------- ASCII 0 Keyboard 1 Movement Arrows Keybinds 0 Fullscreen 1 Font 24/Smallcaps Map View 76x50 Tactical HUD 1 Map Filters NONE Filters NONE Steam 1 RUN: 58b7ebf0-9121-433e-a5a8-9341a938db2c